[Event "Srdja Dragasevic Memorial-A 2024"]
[Site "Cetinje"]
[Date "2024.06.23"]
[Round "2.8"]
[White "Hart, Alexander"]
[Black "Vujosevic, Vladimir"]
[Result "1-0"]
[ECO "E14"]
[WhiteElo "1949"]
[BlackElo "2306"]
[Annotator "RC"]
[PlyCount "113"]
[EventDate "2024.06.23"]
[EventType "swiss"]
[EventCountry "MNE"]
[SourceTitle "playchess.com"]
[Source "ChessBase"]
[SourceQuality "1"]
[TimeControl "40/5400+30:1800+30"]

1. Nf3 {[%emt 1:31:00]} d5 {[%emt 0:01:06]} 2. e3 {[%emt 0:00:00]} Nf6 {[%emt 0:01:02]} 3. c4 {[%emt 0:00:00]} e6 {[%emt 0:00:43]} 4. Nc3 {[%emt 0:00:00]} Be7 {[%emt 0:01:54]} 5. Be2 {[%emt 0:00:00]} O-O {[%emt 0:00:42]} 6. O-O {[%emt 0:00:00]} b6 {[%emt 0:02:41]} 7. cxd5 {[%emt 0:00:00]} exd5 {[%emt 0:00:39]} 8. d4 {[%emt 0:00:00]} Bb7 {[%emt 0:01:18]} 9. b3 {[%emt 0:00:00]} Nbd7 {[%emt 0:03:59]} 10. Bb2 {[%emt 0:00:00]} a6 {[%emt 0:06:48]} 11. Rc1 {[%emt 0:00:00]} Bd6 {[%emt 0:00:33]} 12. Re1 {[%emt 0:00:00]} Qe7 {[%emt 0:02:54]} 13. Bf1 {[%emt 0:00:00]} Rfe8 {[%emt 0:04:03]} 14. g3 {[%emt 0:00:00]} Ne4 {[%emt 0:08:11]} 15. Bg2 {[%emt 0:00:00]} f5 {[%emt 0:03:10]} 16. Nd2 {[%emt 0:00:00]} Ndf6 {[%emt 0:05:41]} 17. f3 {[%emt 0:00:00]} Nxd2 {[%emt 0:02:00]} 18. Qxd2 {[%emt 0:00:00]} h5 {[%emt 0:06:29]} 19. Kf2 {[%emt 0:00:00]} h4 {[%emt 0:12:38]} 20. Ne2 {[%emt 0:00:00]} Nh5 {[%emt 0:04:15]} 21. Rg1 {[%emt 0:00:00]} hxg3+ {[%emt 0:04:05]} 22. hxg3 {[%emt 0:00:00]} Qg5 {[%emt 0:01:49]} 23. f4 {[%emt 0:00:00]} Qg6 {[%emt 0:03:05]} 24. Bf3 {[%emt 0:00:00]} Nf6 {[%emt 0:01:59]} 25. Rh1 {[%emt 0:00:00]} Re7 {[%emt 0:02:56]} 26. Rce1 {[%emt 0:00:00]} Rae8 {[%emt 0:00:35]} 27. Nc1 {[%emt 0:00:00]} Ne4+ {[%emt 0:04:34]} 28. Bxe4 {[%emt 0:00:00]} dxe4 {[%emt 0:00:16]} 29. Rh4 {[%emt 0:00:00]} Kf7 {[%emt 0:05:03]} 30. Ne2 {[%emt 0:01:44]} Rd7 {[%emt 0:02:27]} 31. Rg1 {[%emt 0:02:24]} Be7 {[%emt 0:00:38]} 32. Rh2 {[%emt 0:01:10]} Qg4 {[%emt 0:01:17]} 33. Ke1 {[%emt 0:02:04]} Rg8 {[%emt 0:00:58]} 34. Kd1 {[%emt 0:02:25]} a5 {[%emt 0:00:14]} 35. Kc1 {[%emt 0:00:40]} Ba6 {[%emt 0:00:14]} 36. Kb1 {[%emt 0:00:11]} Bf6 {[%emt 0:01:40]} 37. Ka1 {[%emt 0:01:41]} Rc8 {[%emt 0:00:33]} 38. Nc3 {[%emt 0:01:48]} Rcd8 {[%emt 0:01:18]} 39. Na4 {[%emt 0:01:03]} Rd6 {[%emt 0:01:21]} 40. Qc3 {[%emt 0:00:00]} c5 {[%emt 0:00:00]} 41. Nxb6 {[%emt 0:04:58]} Rxb6 {[%emt 0:07:23]} 42. Qxc5 {[%emt 0:01:41]} Rbd6 {[%emt 0:00:58]} 43. Qxa5 {[%emt 0:07:11]} Bd3 {[%emt 0:00:48]} 44. Bc3 {[%emt 0:07:57]} Rc8 {[%emt 0:03:04]} 45. Rb2 {[%emt 0:05:21]} Rdc6 {[%emt 0:03:51]} 46. Qd5+ {[%emt 0:00:17]} Kg6 {[%emt 0:01:05]} 47. Bd2 {[%emt 0:00:32]} R6c7 {[%emt 0:12:58]} 48. a4 {[%emt 0:01:49]} Rd8 {[%emt 0:00:24]} 49. Qe6 {[%emt 0:00:41]} Re7 {[%emt 0:00:46]} 50. Qb6 {[%emt 0:00:28]} Ree8 {[%emt 0:00:47]} 51. Ka2 {[%emt 0:01:30]} Qf3 {[%emt 0:01:19]} 52. g4 {[%emt 0:02:10]} fxg4 {[%emt 0:00:23]} 53. Ba5 {[%emt 0:00:41]} Qxe3 {[%emt 0:02:43]} 54. Rxg4+ {[%emt 0:01:01]} Kf7 {[%emt 0:01:01]} 55. Qc7+ {[%emt 0:01:31]} Ke6 {[%emt 0:00:35]} 56. Bb6 {[%emt 0:01:34]} Rc8 {[%emt 0:01:31]} 57. d5+ {[%emt 0:00:32]} 1-0

[Event "Srdja Dragasevic Memorial-A 2024"]
[Site "Cetinje"]
[Date "2024.06.23"]
[Round "2.9"]
[White "Xie, Bryan"]
[Black "Willy, Stephen"]
[Result "1-0"]
[ECO "C02"]
[WhiteElo "2281"]
[BlackElo "2046"]
[Annotator "RC"]
[PlyCount "65"]
[EventDate "2024.06.23"]
[EventType "swiss"]
[EventCountry "MNE"]
[SourceTitle "playchess.com"]
[Source "ChessBase"]
[SourceQuality "1"]
[TimeControl "40/5400+30:1800+30"]

1. e4 {[%emt 0:03:05]} e6 {[%emt 0:00:04]} 2. d4 {[%emt 0:00:06]} d5 {[%emt 0:00:04]} 3. e5 {[%emt 0:00:05]} c5 {[%emt 0:00:03]} 4. c3 {[%emt 0:00:03]} Nc6 {[%emt 0:00:03]} 5. Nf3 {[%emt 0:00:05]} Qb6 {[%emt 0:00:04]} 6. a3 {[%emt 0:00:39]} c4 {[%emt 0:00:05]} 7. Nbd2 {[%emt 0:00:16]} Na5 {[%emt 0:00:05]} 8. Be2 {[%emt 0:00:18]} Bd7 {[%emt 0:00:16]} 9. h4 {[%emt 0:02:24]} Ne7 {[%emt 0:05:52]} 10. h5 {[%emt 0:00:19]} h6 {[%emt 0:00:23]} 11. Rb1 {[%emt 0:01:31]} Nc8 {[%emt 0:02:08]} 12. Nf1 {[%emt 0:03:50]} Qc7 {[%emt 0:02:23]} 13. Bf4 {[%emt 0:02:47]} Nb6 {[%emt 0:03:07]} 14. N3d2 {[%emt 0:02:22]} Be7 {[%emt 0:19:38]} 15. Ne3 {[%emt 0:02:52]} O-O-O {[%emt 0:04:06]} 16. Bg4 {[%emt 0:03:04]} Rdf8 {[%emt 0:05:09]} 17. Bg3 {[%emt 0:03:36]} Qd8 {[%emt 0:06:11]} 18. f4 {[%emt 0:07:10]} f6 {[%emt 0:07:26]} 19. exf6 {[%emt 0:00:42]} gxf6 {[%emt 0:00:37]} 20. f5 {[%emt 0:00:12]} e5 {[%emt 0:02:02]} 21. dxe5 {[%emt 0:00:08]} fxe5 {[%emt 0:01:11]} 22. Bxe5 {[%emt 0:00:07]} Bc5 {[%emt 0:03:31]} 23. Bxh8 {[%emt 0:15:30]} Rxh8 {[%emt 0:00:24]} 24. Nc2 {[%emt 0:02:52]} Qg5 {[%emt 0:03:00]} 25. Nd4 {[%emt 0:06:39]} Qf4 {[%emt 0:17:26]} 26. Qf3 {[%emt 0:05:14]} Re8+ {[%emt 0:00:13]} 27. Ne6 {[%emt 0:02:26]} Qe5+ {[%emt 0:03:42]} 28. Kf1 {[%emt 0:00:07]} Bxe6 {[%emt 0:00:30]} 29. Re1 {[%emt 0:00:34]} Qg7 {[%emt 0:01:06]} 30. Rxe6 {[%emt 0:00:17]} Rxe6 {[%emt 0:00:24]} 31. fxe6 {[%emt 0:00:12]} Kb8 {[%emt 0:01:58]} 32. Qf4+ {[%emt 0:00:10]} Ka8 {[%emt 0:01:05]} 33. Qf7 {[%emt 0:37:18]} 1-0

[Event "Srdja Dragasevic Memorial-A 2024"]
[Site "Cetinje"]
[Date "2024.06.23"]
[Round "2.10"]
[White "Soloviov, Artiom"]
[Black "Mammadova, Narmin"]
[Result "0-1"]
[ECO "B13"]
[WhiteElo "1729"]
[BlackElo "2277"]
[Annotator "RC"]
[PlyCount "54"]
[EventDate "2024.06.23"]
[EventType "swiss"]
[EventCountry "MNE"]
[SourceTitle "playchess.com"]
[Source "ChessBase"]
[SourceQuality "1"]
[TimeControl "40/5400+30:1800+30"]

1. e4 {[%emt 0:00:05]} c6 {[%emt 0:00:34]} 2. d4 {[%emt 0:00:12]} d5 {[%emt 0:00:04]} 3. exd5 {[%emt 0:00:18]} cxd5 {[%emt 0:00:03]} 4. Bd3 {[%emt 0:00:23]} Nc6 {[%emt 0:00:10]} 5. c3 {[%emt 0:00:13]} Nf6 {[%emt 0:00:31]} 6. Nf3 {[%emt 0:00:37]} g6 {[%emt 0:00:43]} 7. O-O {[%emt 0:01:12]} Bg7 {[%emt 0:00:02]} 8. h3 {[%emt 0:00:54]} O-O {[%emt 0:00:15]} 9. Bf4 {[%emt 0:02:02]} Nh5 {[%emt 0:00:36]} 10. Be5 {[%emt 0:01:19]} f6 {[%emt 0:05:38]} 11. Bh2 {[%emt 0:06:18]} e5 {[%emt 0:03:49]} 12. g4 {[%emt 0:06:20]} Nf4 {[%emt 0:04:28]} 13. Bxf4 {[%emt 0:00:29]} exf4 {[%emt 0:00:01]} 14. Nbd2 {[%emt 0:05:47]} Be6 {[%emt 0:02:05]} 15. Kh2 {[%emt 0:08:24]} Qc7 {[%emt 0:02:33]} 16. Nh4 {[%emt 0:04:47]} Rae8 {[%emt 0:07:26]} 17. Qf3 {[%emt 0:05:30]} Bf7 {[%emt 0:01:01]} 18. Ng2 {[%emt 0:01:22]} Bh6 {[%emt 0:02:46]} 19. Rae1 {[%emt 0:02:12]} Qa5 {[%emt 0:02:58]} 20. Bb1 {[%emt 0:00:27]} Nxd4 {[%emt 0:00:34]} 21. Qd3 {[%emt 0:03:28]} Nc6 {[%emt 0:01:07]} 22. Rxe8 {[%emt 0:02:30]} Rxe8 {[%emt 0:00:11]} 23. Re1 {[%emt 0:00:12]} Rxe1 {[%emt 0:00:26]} 24. Nxe1 {[%emt 0:00:11]} Qb6 {[%emt 0:00:05]} 25. f3 {[%emt 0:02:12]} Qf2+ {[%emt 0:00:40]} 26. Ng2 {[%emt 0:00:31]} Ne5 {[%emt 0:00:09]} 27. Qd4 {[%emt 0:05:38]} Qxd2 {[%emt 0:02:53]} 0-1

[Event "Srdja Dragasevic Memorial-A 2024"]
[Site "Cetinje"]
[Date "2024.06.23"]
[Round "2.11"]
[White "Djukic, Nikola"]
[Black "Guleryuz, Kuzey"]
[Result "1-0"]
[ECO "C11"]
[WhiteElo "2532"]
[BlackElo "1971"]
[Annotator "TA"]
[PlyCount "45"]
[EventDate "2024.06.23"]
[EventType "swiss"]
[EventCountry "MNE"]
[SourceTitle "playchess.com"]
[Source "ChessBase"]
[SourceQuality "1"]
[TimeControl "40/5400+30:1800+30"]

{[%evp 15,45,16,8,8,16,10,29,29,42,33,49,57,58,54,62,66,57,66,76,64,72,72,68,62,160,170,168,157,656,660,662,664]} 1. e4 {[%emt 0:04:23][%cal Be2e4,Be4e5][%mdl 32]} e6 {[%emt 0:00:08]} 2. d4 {[%emt 0:00:07]} d5 {[%emt 0:00:07]} 3. Nc3 {[%emt 0:00:06]} Nf6 {[%emt 0:00:12]} 4. e5 {[%emt 0:10:44]} Nfd7 {[%emt 0:00:06]} 5. f4 {[%emt 0:00:04]} c5 {[%emt 0:00:05]} 6. Nf3 {[%emt 0:00:07]} Nc6 {[%emt 0:00:32]} 7. Be3 {[%emt 0:01:33]} Be7 {[%emt 0:00:18]} 8. Qd2 {[%emt 0:02:01]} a6 {[%emt 0:01:33]} 9. Bd3 {[%emt 0:06:56]} b5 {[%emt 0:02:26]} 10. a3 {[%emt 0:00:36]} Qb6 {[%emt 0:13:45]} 11. Qf2 {[%emt 0:00:56] White has an edge.} Bb7 {[%emt 0:03:49]} 12. O-O {[%emt 0:03:35]} cxd4 {[%emt 0:08:20]} 13. Nxd4 {[%emt 0:00:12]} Nxd4 {[%emt 0:00:04]} 14. Bxd4 {[%emt 0:00:07]} Bc5 {[%emt 0:00:02]} 15. Ne2 {[%emt 0:00:27]} Bxd4 {[%emt 0:02:52]} 16. Nxd4 {[%emt 0:00:08]} O-O {[%emt 0:00:53]} 17. c3 {[%emt 0:16:23]} Nc5 {[%emt 0:13:37]} 18. Rad1 {[%emt 0:08:52] White is more active.} Qc7 {[%emt 0:14:42]} 19. Qg3 {[%emt 0:05:21]} Ne4 {[%emt 0:08:28] [#]} ({Black should try} 19... Rae8 $14) 20. Bxe4 $1 $40 {[%emt 0:00:43][%mdl 128] Black is in trouble.} dxe4 {[%emt 0:00:03] Black is weak on the dark squares} 21. f5 {[%emt 0:00:16] Threatens to win with f6.} exf5 {[%emt 0:02:08]} (21... Kh8 $16) 22. Nxf5 $18 {[%emt 0:00:46][%csl Gf5][%cal Rg3g7]} f6 {[%emt 0:01:49] [#]} 23. Rd7 $3 {[%emt 0:05:22][%mdl 512] Weighted Error Value: White=0.03 (flawless) /Black=0.44.  Loses game:     	---       	Black=1      Mistake:       	---       	Black=1      OK:         	White=3     	Black=1      Best:        	White=1     	---        Strong:       	White=1     	---} 1-0

[Event "Srdja Dragasevic Memorial-A 2024"]
[Site "Cetinje"]
[Date "2024.06.23"]
[Round "2.12"]
[White "Tadic, Stefan"]
[Black "Pogorelskikh, Sofia"]
[Result "1-0"]
[ECO "B31"]
[WhiteElo "2421"]
[BlackElo "2216"]
[Annotator "RC"]
[PlyCount "105"]
[EventDate "2024.06.23"]
[EventType "swiss"]
[EventCountry "MNE"]
[SourceTitle "playchess.com"]
[Source "ChessBase"]
[SourceQuality "1"]
[TimeControl "40/5400+30:1800+30"]

1. e4 {[%emt 0:00:05]} c5 {[%emt 0:00:25]} 2. Nf3 {[%emt 0:00:05]} Nc6 {[%emt 0:00:22]} 3. Bb5 {[%emt 0:00:07]} g6 {[%emt 0:00:23]} 4. Bxc6 {[%emt 0:00:25]} bxc6 {[%emt 0:00:23]} 5. O-O {[%emt 0:00:19]} Bg7 {[%emt 0:00:20]} 6. Re1 {[%emt 0:00:08]} Qc7 {[%emt 0:02:43]} 7. d3 {[%emt 0:00:10]} d6 {[%emt 0:02:14]} 8. e5 {[%emt 0:00:23]} dxe5 {[%emt 0:01:31]} 9. Na3 {[%emt 0:00:07]} f6 {[%emt 0:05:13]} 10. Be3 {[%emt 0:00:34]} Nh6 {[%emt 0:02:47]} 11. Bxc5 {[%emt 0:00:23]} O-O {[%emt 0:03:14]} 12. d4 {[%emt 0:00:07]} Bg4 {[%emt 0:03:52]} 13. h3 {[%emt 0:13:28]} Bxf3 {[%emt 0:05:15]} 14. Qxf3 {[%emt 0:00:07]} f5 {[%emt 0:09:34]} 15. dxe5 {[%emt 0:04:35]} Bxe5 {[%emt 0:02:05]} 16. Nc4 {[%emt 0:02:12]} Bf6 {[%emt 0:13:56]} 17. Re6 {[%emt 0:04:44]} Nf7 {[%emt 0:08:35]} 18. Rxc6 {[%emt 0:24:10]} Qb7 {[%emt 0:03:37]} 19. Rxf6 {[%emt 0:00:06]} Qxf3 {[%emt 0:00:27]} 20. gxf3 {[%emt 0:00:04]} exf6 {[%emt 0:01:04]} 21. Bxf8 {[%emt 0:00:07]} Kxf8 {[%emt 0:00:22]} 22. Rd1 {[%emt 0:03:16]} Rc8 {[%emt 0:03:16]} 23. b3 {[%emt 0:00:25]} Ke7 {[%emt 0:01:18]} 24. Rd5 {[%emt 0:07:43]} Ng5 {[%emt 0:02:09]} 25. Kg2 {[%emt 0:02:33]} Ne6 {[%emt 0:02:02]} 26. Ra5 {[%emt 0:00:07]} Rc7 {[%emt 0:26:23]} 27. Ne3 {[%emt 0:06:19]} Nf4+ {[%emt 0:00:00]} 28. Kh2 {[%emt 0:02:57]} Rd7 {[%emt 0:00:00]} 29. Ra4 {[%emt 0:00:38]} Ne6 {[%emt 0:00:00]} 30. c4 {[%emt 0:00:49]} Nc5 {[%emt 0:00:00]} 31. Ra5 {[%emt 0:01:02]} Nd3 {[%emt 0:00:00]} 32. Nd5+ {[%emt 0:01:45]} Kf7 {[%emt 0:00:00]} 33. Kg2 {[%emt 0:01:18]} Kg7 {[%emt 0:00:00]} 34. Ra6 {[%emt 0:06:07]} Rf7 {[%emt 0:00:00]} 35. b4 {[%emt 0:01:47]} Rd7 {[%emt 0:00:00]} 36. a3 {[%emt 0:05:07]} g5 {[%emt 0:00:00]} 37. f4 {[%emt 0:05:17]} gxf4 {[%emt 0:00:55]} 38. Nxf6 {[%emt 0:03:41]} Re7 {[%emt 0:02:10]} 39. Nh5+ {[%emt 0:00:55]} Kg8 {[%emt 0:01:16]} 40. Kf3 {[%emt 0:00:00]} Ne5+ {[%emt 0:00:00]} 41. Kxf4 {[%emt 0:04:18]} Nxc4 {[%emt 0:02:09]} 42. Ng3 {[%emt 0:06:35]} Nb6 {[%emt 0:01:58]} 43. Ra5 {[%emt 0:00:31]} Nc4 {[%emt 0:01:01]} 44. Nxf5 {[%emt 0:01:29]} Re2 {[%emt 0:01:15]} 45. Rxa7 {[%emt 0:01:49]} Rxf2+ {[%emt 0:00:21]} 46. Kg5 {[%emt 0:00:04]} Rg2+ {[%emt 0:00:48]} 47. Kh5 {[%emt 0:05:21]} Nb6 {[%emt 0:02:16]} 48. Rb7 {[%emt 0:02:18]} Nd5 {[%emt 0:00:45]} 49. Ne7+ {[%emt 0:00:21]} Nxe7 50. Rxe7 {[%emt 0:00:05]} Rg3 {[%emt 0:00:21]} 51. a4 {[%emt 0:00:05]} Rxh3+ {[%emt 0:00:11]} 52. Kg4 {[%emt 0:00:05]} Rb3 {[%emt 0:00:21]} 53. Rb7 {[%emt 0:00:05]} 1-0

[Event "Srdja Dragasevic Memorial-A 2024"]
[Site "Cetinje"]
[Date "2024.06.23"]
[Round "2.13"]
[White "Yaksin, Oleg"]
[Black "Skvortsova, Alena"]
[Result "1-0"]
[ECO "A11"]
[WhiteElo "2389"]
[BlackElo "2170"]
[Annotator "RC"]
[PlyCount "69"]
[EventDate "2024.06.23"]
[EventType "swiss"]
[EventCountry "MNE"]
[SourceTitle "playchess.com"]
[Source "ChessBase"]
[SourceQuality "1"]
[TimeControl "40/5400+30:1800+30"]

1. Nf3 {[%emt 0:04:57]} d5 {[%emt 0:15:25]} 2. g3 {[%emt 0:00:05]} Nf6 {[%emt 0:00:26]} 3. Bg2 {[%emt 0:00:02]} g6 {[%emt 0:00:38]} 4. c4 {[%emt 0:00:46]} c6 {[%emt 0:02:08]} 5. b3 {[%emt 0:05:37]} Bg7 {[%emt 0:01:19]} 6. Bb2 {[%emt 0:00:45]} O-O {[%emt 0:00:33]} 7. O-O {[%emt 0:00:05]} Re8 {[%emt 0:04:01]} 8. Qc2 {[%emt 0:03:29]} Bg4 {[%emt 0:14:51]} 9. d3 {[%emt 0:08:00]} Bxf3 {[%emt 0:01:19]} 10. Bxf3 {[%emt 0:00:06]} e5 {[%emt 0:00:07]} 11. Nd2 {[%emt 0:14:34]} a5 {[%emt 0:05:00]} 12. a3 {[%emt 0:03:49]} Na6 {[%emt 0:02:30]} 13. e3 {[%emt 0:15:43]} Rc8 {[%emt 0:01:35]} 14. Rfe1 {[%emt 0:02:57]} Qd7 {[%emt 0:03:54]} 15. Bc3 {[%emt 0:08:24]} b6 {[%emt 0:03:03]} 16. Rad1 {[%emt 0:08:51]} h5 {[%emt 0:02:25]} 17. Bg2 {[%emt 0:02:45]} h4 {[%emt 0:10:25]} 18. Nf3 {[%emt 0:00:20]} h3 {[%emt 0:05:44]} 19. Bf1 {[%emt 0:01:06]} Qf5 {[%emt 0:00:26]} 20. Qe2 {[%emt 0:02:31]} d4 {[%emt 0:07:27]} 21. e4 {[%emt 0:02:13]} Qh5 {[%emt 0:03:35]} 22. Bd2 {[%emt 0:00:11]} Nc5 {[%emt 0:04:15]} 23. Rb1 {[%emt 0:04:48]} Ng4 {[%emt 0:02:55]} 24. Nh4 {[%emt 0:02:29]} f5 {[%emt 0:01:12]} 25. Bxh3 {[%emt 0:01:24]} Bf6 {[%emt 0:00:55]} 26. exf5 {[%emt 0:02:06]} gxf5 {[%emt 0:00:19]} 27. f3 {[%emt 0:01:59]} Nh6 {[%emt 0:05:12]} 28. Bxh6 {[%emt 0:00:02]} Bxh4 {[%emt 0:00:21]} 29. gxh4 {[%emt 0:00:01]} Qxh6 {[%emt 0:00:33]} 30. Bxf5 {[%emt 0:00:01]} Rc7 {[%emt 0:00:15]} 31. Kh1 {[%emt 0:00:13]} Rg7 {[%emt 0:01:44]} 32. Rg1 {[%emt 0:00:10]} Ree7 {[%emt 0:00:19]} 33. Rxg7+ {[%emt 0:02:22]} Rxg7 {[%emt 0:01:21]} 34. Qxe5 {[%emt 0:00:50]} Qd2 {[%emt 0:00:20]} 35. Qe8# {[%emt 0:04:19]} 1-0

[Event "Srdja Dragasevic Memorial-A 2024"]
[Site "Cetinje"]
[Date "2024.06.23"]
[Round "2.14"]
[White "Kosic, Dragan"]
[Black "Levi, Netanel"]
[Result "1-0"]
[ECO "E94"]
[WhiteElo "2382"]
[BlackElo "2152"]
[Annotator "RC"]
[PlyCount "131"]
[EventDate "2024.06.23"]
[EventType "swiss"]
[EventCountry "MNE"]
[SourceTitle "playchess.com"]
[Source "ChessBase"]
[SourceQuality "1"]
[TimeControl "40/5400+30:1800+30"]

1. d4 {[%emt 0:00:03]} d6 {[%emt 0:01:28]} 2. Nf3 {[%emt 0:00:13]} Nf6 {[%emt 0:00:12]} 3. c4 {[%emt 0:00:53]} g6 {[%emt 0:00:48]} 4. Nc3 {[%emt 0:00:14]} Bg7 {[%emt 0:00:11]} 5. e4 {[%emt 0:00:12]} O-O {[%emt 0:00:09]} 6. Be2 {[%emt 0:00:08]} e5 {[%emt 0:00:08]} 7. O-O {[%emt 0:00:38]} Nbd7 {[%emt 0:00:09]} 8. Be3 {[%emt 0:00:10]} Qe7 {[%emt 0:00:02]} 9. Qc2 {[%emt 0:02:34]} c6 {[%emt 0:00:08]} 10. Rad1 {[%emt 0:01:14]} h6 {[%emt 0:00:11]} 11. Ne1 {[%emt 0:06:26]} exd4 {[%emt 0:15:34]} 12. Bxd4 {[%emt 0:00:15]} Re8 {[%emt 0:04:22]} 13. f3 {[%emt 0:01:32]} d5 {[%emt 0:01:25]} 14. cxd5 {[%emt 0:03:47]} cxd5 {[%emt 0:00:13]} 15. Nb5 {[%emt 0:02:54]} b6 {[%emt 0:21:19]} 16. Nc7 {[%emt 0:01:10]} Bb7 {[%emt 0:00:08]} 17. Nxe8 {[%emt 0:01:50]} Rxe8 {[%emt 0:00:02]} 18. Qc7 {[%emt 0:04:13]} Nc5 {[%emt 0:00:19]} 19. Qxe7 {[%emt 0:00:34]} Rxe7 {[%emt 0:00:02]} 20. e5 {[%emt 0:00:25]} Nfd7 {[%emt 0:01:14]} 21. f4 {[%emt 0:00:14]} f6 {[%emt 0:01:52]} 22. exf6 {[%emt 0:04:39]} Bxf6 {[%emt 0:00:53]} 23. Bxf6 {[%emt 0:03:16]} Rxe2 {[%emt 0:00:33]} 24. Bd4 {[%emt 0:01:42]} Ne6 {[%emt 0:01:23]} 25. Bc3 {[%emt 0:01:13]} Ndc5 {[%emt 0:03:37]} 26. Be5 {[%emt 0:12:37]} g5 {[%emt 0:10:59]} 27. Rf2 {[%emt 0:06:06]} Re4 {[%emt 0:00:46]} 28. g3 {[%emt 0:01:57]} Ba6 {[%emt 0:04:06]} 29. Bb8 {[%emt 0:05:51]} Nd4 {[%emt 0:05:54]} 30. fxg5 {[%emt 0:05:24]} hxg5 {[%emt 0:00:02]} 31. Kg2 {[%emt 0:01:49]} Nb5 {[%emt 0:07:50]} 32. Rf5 {[%emt 0:18:04]} Re2+ {[%emt 0:02:54]} 33. Kg1 {[%emt 0:03:14]} Ne4 {[%emt 0:01:40]} 34. Rfxd5 {[%emt 0:03:42]} Rxb2 {[%emt 0:01:29]} 35. Nd3 {[%emt 0:01:52]} Re2 {[%emt 0:03:21]} 36. Nb4 {[%emt 0:00:47]} Nbc3 {[%emt 0:01:08]} 37. Rd8+ {[%emt 0:03:01]} Kf7 {[%emt 0:00:04]} 38. Nxa6 {[%emt 0:03:26]} Nxd1 {[%emt 0:01:30]} 39. Rxd1 {[%emt 0:00:02]} Rxa2 {[%emt 0:00:31]} 40. Nb4 {[%emt 0:00:00]} Ra4 {[%emt 0:00:00]} 41. Nc6 {[%emt 0:01:52]} a6 {[%emt 0:04:06]} 42. Bc7 {[%emt 0:01:56]} b5 {[%emt 0:00:30]} 43. Ba5 {[%emt 0:01:15]} Ke6 {[%emt 0:01:19]} 44. g4 {[%emt 0:03:14]} Nd6 {[%emt 0:02:13]} 45. h3 {[%emt 0:01:06]} Nc4 {[%emt 0:00:38]} 46. Bd8 {[%emt 0:02:48]} Ra3 {[%emt 0:01:27]} 47. Bxg5 {[%emt 0:00:21]} Rxh3 {[%emt 0:00:19]} 48. Kg2 {[%emt 0:00:55]} Ra3 {[%emt 0:01:10]} 49. Bf4 {[%emt 0:00:27]} Kf6 {[%emt 0:04:30]} 50. Rd5 {[%emt 0:01:01]} Ne3+ {[%emt 0:01:53]} 51. Bxe3 {[%emt 0:00:05]} Rxe3 {[%emt 0:00:05]} 52. Rf5+ {[%emt 0:03:06]} Ke6 {[%emt 0:00:41]} 53. Nd4+ {[%emt 0:01:19]} Kd6 {[%emt 0:00:30]} 54. g5 {[%emt 0:00:16]} Re5 {[%emt 0:04:58]} 55. Rf6+ {[%emt 0:05:57]} Kd5 {[%emt 0:00:35]} 56. Nf3 {[%emt 0:01:01]} Re6 {[%emt 0:00:01]} 57. Rf5+ {[%emt 0:00:50]} Kc4 {[%emt 0:01:04]} 58. Ne5+ {[%emt 0:00:31]} Kc3 {[%emt 0:00:55]} 59. g6 {[%emt 0:00:08]} Re7 {[%emt 0:00:40]} 60. Rf3+ {[%emt 0:01:38]} Kc2 {[%emt 0:00:21]} 61. Nc6 {[%emt 0:01:14]} Rg7 {[%emt 0:01:48]} 62. Rg3 {[%emt 0:00:33]} Kd2 {[%emt 0:00:29]} 63. Kh3 {[%emt 0:01:48]} Ke2 {[%emt 0:00:13]} 64. Kh4 {[%emt 0:01:26]} Kf2 {[%emt 0:00:09]} 65. Rg4 {[%emt 0:00:34]} Kf3 {[%emt 0:00:38]} 66. Kh5 {[%emt 0:00:47]} 1-0

[Event "Srdja Dragasevic Memorial-A 2024"]
[Site "Cetinje"]
[Date "2024.06.23"]
[Round "2.15"]
[White "Pobor, Milo"]
[Black "Mammadov, Zaur"]
[Result "0-1"]
[ECO "B12"]
[WhiteElo "2209"]
[BlackElo "2426"]
[Annotator "RC"]
[PlyCount "70"]
[EventDate "2024.06.23"]
[EventType "swiss"]
[EventCountry "MNE"]
[SourceTitle "playchess.com"]
[Source "ChessBase"]
[SourceQuality "1"]
[TimeControl "40/5400+30:1800+30"]

1. e4 {[%emt 0:07:22]} c6 {[%emt 0:00:07]} 2. d4 {[%emt 0:00:09]} d5 {[%emt 0:00:01]} 3. e5 {[%emt 0:00:07]} Bf5 {[%emt 0:00:04]} 4. h4 {[%emt 0:00:05]} h6 {[%emt 0:00:05]} 5. g4 {[%emt 0:00:26]} Be4 {[%emt 0:00:05]} 6. f3 {[%emt 0:00:19]} Bh7 {[%emt 0:00:02]} 7. e6 {[%emt 0:00:34]} Qd6 {[%emt 0:00:02]} 8. exf7+ {[%emt 0:01:26]} Kxf7 {[%emt 0:00:01]} 9. Bd3 {[%emt 0:06:29]} Nf6 {[%emt 0:03:54]} 10. Ne2 {[%emt 0:12:47]} Nbd7 {[%emt 0:07:01]} 11. Nbc3 {[%emt 0:01:23]} e5 {[%emt 0:01:20]} 12. Bxh7 {[%emt 0:04:18]} Rxh7 {[%emt 0:02:30]} 13. Be3 {[%emt 0:00:17]} Re8 {[%emt 0:03:15]} 14. Qd3 {[%emt 0:01:58]} exd4 {[%emt 0:07:35]} 15. Bxd4 {[%emt 0:00:44]} c5 {[%emt 0:05:08]} 16. Bxf6 {[%emt 0:01:56]} Nxf6 {[%emt 0:00:19]} 17. O-O-O {[%emt 0:06:11]} d4 {[%emt 0:05:37]} 18. Ne4 {[%emt 0:07:46]} Nxe4 {[%emt 0:10:49]} 19. fxe4 {[%emt 0:00:20]} Kg8 {[%emt 0:00:49]} 20. Kb1 {[%emt 0:03:43]} g6 {[%emt 0:05:20]} 21. Rhf1 {[%emt 0:07:26]} Rhe7 {[%emt 0:04:19]} 22. Ng3 {[%emt 0:02:39]} Bg7 {[%emt 0:02:45]} 23. g5 {[%emt 0:03:10]} Be5 {[%emt 0:08:57]} 24. Nf5 {[%emt 0:01:15]} gxf5 {[%emt 0:06:05]} 25. exf5 {[%emt 0:00:08]} Bf4 {[%emt 0:07:35]} 26. f6 {[%emt 0:08:53]} Re4 {[%emt 0:00:14]} 27. Rxf4 {[%emt 0:02:21]} Qxf4 {[%emt 0:02:21]} 28. Qb3+ {[%emt 0:00:23]} Kf8 {[%emt 0:06:26]} 29. Qxb7 {[%emt 0:01:21]} R8e6 {[%emt 0:00:38]} 30. Qc8+ {[%emt 0:13:24]} Kf7 {[%emt 0:00:03]} 31. Qd7+ {[%emt 0:00:19]} Kg6 {[%emt 0:02:11]} 32. h5+ {[%emt 0:06:51]} Kxh5 {[%emt 0:00:43]} 33. Rh1+ {[%emt 0:00:00]} Kg4 {[%emt 0:01:09]} 34. gxh6 {[%emt 0:00:00]} Qxh6 {[%emt 0:03:42]} 35. Rg1+ {[%emt 0:00:00]} Kf3 {[%emt 0:00:52]} 0-1